Cogmind - Beta 14 @@@ ROGUE MODE // 2024.08.25 @ 01:24:52 Player: milesaru Result: Destroyed by as-01110 with Assembled Heavy Rifle Performance ------------- Evolutions (0) 0 Regions Visited (2) 400 Robots Destroyed (13) 65 Value Destroyed (411) 411 Prototype IDs (0) 0 Alien Tech Used (0) 0 Bonus (32) 32 TOTAL SCORE: 908 Bonus ------- Follower Combat Kills 39 Friendly Fire -7 Cogmind --------- Core Integrity 0/250 Matter 6/300 Energy 140/140 System Corruption 0% Temperature Cool (2) Movement Hovering (80) Location -10/Mines Parts ------- > --- POWER (1) -------- Light Deuterium Engine > --- PROPULSION (2) --- Combat Airjet > --- UTILITY (2) ------ Launcher Guidance Computer > --- WEAPON (2) ------- Assault Rifle > --- INVENTORY (5) ---- Light Deuterium Engine Heat Sink Mini Grenade Launcher Mining Laser Peak State ------------ > --- POWER ------------ Light Deuterium Engine > --- PROPULSION ------- Combat Airjet > --- UTILITY ---------- Launcher Guidance Computer Shock Absorption System > --- WEAPON ----------- Grenade Launcher Mini Grenade Launcher > --- INVENTORY -------- Heat Sink Assault Rifle Mining Laser [Rating: 19] Favorites ----------- Power Light Ion Engine Engine Light Ion Engine Propulsion Improved Hover Unit Leg Aluminum Leg Hover Unit Improved Hover Unit Flight Unit Flight Unit Utility Small Storage Unit Device Sensor Array Storage Small Storage Unit Processor Launcher Guidance Computer Weapon Grenade Launcher Ballistic Gun Assault Rifle Launcher Grenade Launcher Special Weapon Mining Laser Build | -11 -10 -10 ------- Run | Yrd Mat Min Slots Evolved . | . . . Power . | . . . Propulsion . | . . . Utility . | . . . Weapon . | . . . Parts Attached 25 | 6 4 15 Power 4 | 1 . 3 Engine 4 | 1 . 3 Core . | . . . Reactor . | . . . Propulsion 7 | 2 2 3 Treads . | . . . Leg 2 | 2 . . Wheel . | . . . Hover 3 | . 2 1 Flight 2 | . . 2 Utility 4 | 1 1 2 Device 2 | . 1 1 Storage 1 | 1 . . Processor 1 | . . 1 Hackware . | . . . Protection . | . . . Artifact . | . . . Weapon 10 | 2 1 7 Energy Gun . | . . . Energy Cannon . | . . . Ballistic Gun 4 | 2 . 2 Ballistic Cannon . | . . . Launcher 4 | . 1 3 Special Weapon 2 | . . 2 Impact Weapon . | . . . Slashing Weapon . | . . . Piercing Weapon . | . . . Special Melee Weapon . | . . . Unidentified Prototypes . | . . . Parts Lost 7 | . . 7 Power . | . . . Propulsion 3 | . . 3 Utility 1 | . . 1 Weapon 3 | . . 3 Highest Loss Streak 4 | . . 4 To Critical Strikes . | . . . Average Slot Usage (%) 80 | . 85 76 Engine 14 | . 14 14 Leg 3 | . 9 . Hover 12 | . 18 8 Flight 6 | . . 11 Device 7 | . 1 12 Storage 7 | . 14 2 Processor 2 | . . 5 Ballistic Gun 8 | . 14 4 Launcher 13 | . 13 14 Special Weapon 2 | . . 4 Peak Build Rating 19 | 6 9 19 Average Rating 8 | 4 7 9 On Entrance 5 | . 6 9 Naked Turns . | . . . Heaviest Build 14 | 12 14 14 Greatest Support 20 | 20 20 14 Greatest Overweight (x) 4 | 3 4 4 Average Overweight (x) . | . . . Largest Inventory Capacity 8 | 8 8 8 Average Capacity 6 | 7 8 5 Most Carried 8 | 3 8 8 Average Carried 4 | . 4 4 Final Capacity 8 | 8 8 5 Final Carried 7 | 1 7 4 Class Distribution -------------------- 73% | Mutant 26% | Scavenger-Mutant Dominant Class ---------------- Mutant | -10/Materials Scavenger-Mutant | -10/Mines Resources | -11 -10 -10 ----------- Run | Yrd Mat Min Matter Collected 468 | 198 97 173 Remotely . | . . . Salvage Created 212 | . 151 61 Parts 23 | . 13 10 Haulers Intercepted . | . . . Recyclers Shooed 1 | . . 1 Parts Field Recycled . | . . . Retrieved Matter . | . . . Parts Self-Destructed . | . . . Prevented . | . . . Kills | -11 -10 -10 ------- Run | Yrd Mat Min Combat Hostiles Destroyed 15 | . 6 9 Guns 2 | . 1 1 Cannons 1 | . . 1 AOE 12 | . 5 7 Classes Destroyed 5 | . 2 3 Tunneler 1 | . . 1 Watcher 1 | . 1 . Swarmer 3 | . . 3 Grunt 8 | . 6 2 Assembled 4 | . . 4 Best Kill Streak 4 | . 4 4 Combat Bots Only 3 | . 3 2 Max Kills in Single Turn 2 | . 2 2 Gunslinging . | . . . Exploded 2 | . 2 2 Melee . | . . . Uniques/NPCs Destroyed . | . . . Combat | -11 -10 -10 -------- Run | Yrd Mat Min Hostile Shots Fired 66 | . 12 54 Missed 25 | . 5 20 Damage Taken 736 | . 104 632 Core 256 | . 30 226 Absorbed by Shields . | . . . Ignored by Resistances 13 | . . 13 Core Remaining (%) 100 | 100 . . Volleys Fired 43 | . 14 29 Largest 2 | . 2 2 Hottest 100 | . 50 100 Shots Fired 56 | . 24 32 Gun 29 | . 14 15 Cannon . | . . . Launcher 26 | . 10 16 Special 1 | . . 1 Kinetic 29 | . 14 15 Thermal 1 | . . 1 Explosive 26 | . 10 16 Electromagnetic . | . . . Robot Hit Streak 8 | . 8 6 Robot Miss Streak 4 | . 2 4 Penetration Max . | . . . Secondary Targets . | . . . Shots Hit Robots 29 | . 15 14 Core Hits 31 | . 11 20 Critical Kills . | . . . Critical Parts Destroyed . | . . . Critical Strikes . | . . . Melee Attacks . | . . . Impact . | . . . Slashing . | . . . Piercing . | . . . Sneak Attacks . | . . . Combat Hostiles . | . . . Follow-up Attacks . | . . . Damage Inflicted 1205 | . 505 700 Guns 173 | . 110 63 Cannons . | . . . Explosions 1008 | . 395 613 Melee . | . . . Ramming . | . . . Kinetic 173 | . 110 63 Thermal 24 | . . 24 Explosive 1008 | . 395 613 Electromagnetic . | . . . Impact . | . . . Slashing . | . . . Piercing . | . . . Highest Corruption . | . . . Average Corruption . | . . . Corruption Purged . | . . . Corruption Blocked . | . . . Overload Shots . | . . . Overflow Damage . | . . . Projectiles . | . . . Explosions . | . . . Melee . | . . . Knockbacks . | . . . Impact . | . . . Kinetic . | . . . Secondary . | . . . Self-Inflicted Damage 99 | . 29 70 Shots 8 | . 2 6 Rammed . | . . . Targets Rammed . | . . . Kicked . | . . . Crushed . | . . . Highest Temperature 28 | . 6 28 Average Temperature 7 | . 3 10 Received Heat Transfer 57 | . 42 15 Siege Activations . | . . . Robots Corrupted . | . . . Combat Hostiles . | . . . Parts Fried . | . . . Impact Corruptions . | . . . Robots Melted . | . . . Combat Hostiles . | . . . Parts Melted . | . . . Heat Transferred 50 | . . 50 Parts Sabotaged . | . . . Parts Stolen . | . . . Parts Stripped . | . . . Power Chain Reactions . | . . . Alert | -11 -10 -10 ------- Run | Yrd Mat Min Peak Influence 317 | . 234 317 Initial 91 | . . 91 Average 155 | . 78 240 Maximum Alert Level 1 | . 1 1 Low Security (%) 55 | 100 86 23 Level 1 44 | . 13 76 Level 2 . | . . . Level 3 . | . . . Level 4 . | . . . Level 5 . | . . . High Security . | . . . Max Security . | . . . Squads Dispatched 1 | . 1 . Investigation . | . . . Extermination . | . . . Reinforcement 1 | . 1 . Assault . | . . . Garrison . | . . . Intercept . | . . . Searches Triggered . | . . . Construction Impeded . | . . . Haulers Reinforced . | . . . Active Scanning Responses . | . . . Cargo Convoy Interrupts . | . . . Stealth | -11 -10 -10 --------- Run | Yrd Mat Min Distress Signals 2 | . 2 . Communications Jammed . | . . . Distress Signals . | . . . Times Spotted 23 | . 8 15 Peak Tracking Total 4 | . 4 4 Tactical Retreats . | . . . Traps | -11 -10 -10 ------- Run | Yrd Mat Min Traps Triggered . | . . . Indirectly . | . . . Trap Hack Attempts . | . . . Triggered . | . . . Disarmed . | . . . Reprogrammed . | . . . Reused . | . . . Traps Extracted . | . . . Installed . | . . . Triggered . | . . . Machines | -11 -10 -10 ---------- Run | Yrd Mat Min Machines Disabled 6 | . 1 5 Max in Single Turn 4 | . 1 4 Machines Repaired . | . . . Machines Dismantled . | . . . Machines Sabotaged . | . . . Overloaded Fab Kills . | . . . Hacking | -11 -10 -10 --------- Run | Yrd Mat Min Machines Accessed 1 | . 1 . Terminals 1 | . 1 . Fabricators . | . . . Repair Stations . | . . . Recycling Units . | . . . Scanalyzers . | . . . Garrison Access . | . . . Total Hacks 2 | . 2 . Successful . | . . . Failed 2 | . 2 . Catastrophic . | . . . Database Lockouts . | . . . Manual . | . . . Terminals 2 | . 2 . Fabricators . | . . . Repair Stations . | . . . Recycling Units . | . . . Scanalyzers . | . . . Garrison Access . | . . . Terminal Hacks . | . . . Fabricator Hacks . | . . . Repair Station Hacks . | . . . Recycling Unit Hacks . | . . . Scanalyzer . | . . . Garrison Access Hacks . | . . . Unauthorized Hacks . | . . . Terminals . | . . . Fabricators . | . . . Repair Stations . | . . . Recycling Units . | . . . Scanalyzers . | . . . Garrison Access . | . . . Data Cores Recovered . | . . . Used . | . . . Hacking Detections 1 | . 1 . Full Trace Events . | . . . Feedback Events . | . . . Feedback Blocked . | . . . Robot Schematics Acquired . | . . . Robots Built . | . . . Authchips . | . . . Time . | . . . Total Robot Build Rating . | . . . Part Schematics Acquired . | . . . Parts Built . | . . . Authchips . | . . . Time . | . . . Total Part Build Rating . | . . . Parts Repaired . | . . . Time . | . . . Parts Recycled . | . . . Recycled Matter . | . . . Retrieved Matter . | . . . Retrieved Components . | . . . Parts Scanalyzed . | . . . Part Schematics Acquired . | . . . Parts Damaged . | . . . Bothacking | -11 -10 -10 ------------ Run | Yrd Mat Min Used RIF Installer . | . . . Robots Hacked . | . . . Non-combat . | . . . Combat . | . . . Robot Hacks Applied . | . . . Relay Couplers Released . | . . . Fabnet Peak Effective % . | . . . Robots Rewired . | . . . Allies Hacked . | . . . Hacks Repelled . | . . . Allies | -11 -10 -10 -------- Run | Yrd Mat Min Total Allies 5 | . . 5 Largest Group 5 | . . 5 Highest-Rated Group 83 | . . 83 Highest-Rated Ally 31 | . . 31 Total Orders 2 | . . 2 FOLLOW 1 | . . 1 AID 1 | . . 1 Ally Attacks 19 | . . 19 Total Damage 220 | . . 220 Kills 6 | . . 6 Allies Corrupted . | . . . Allies Melted . | . . . Intel | -11 -10 -10 ------- Run | Yrd Mat Min Robot Analysis Total . | . . . Derelict Logs Recovered 1 | . . 1 Drone Launches . | . . . Drone Recoveries . | . . . Exploration | -11 -10 -10 ------------- Run | Yrd Mat Min Turns Passed 637 | 60 246 331 Spaces Moved 714 | 44 269 401 Core 36 | 15 2 19 Treads . | . . . Legs 74 | 29 45 . Wheels . | . . . Hover 371 | . 222 149 Flight 233 | . . 233 Fastest Speed 37 | 50 56 37 Average Speed 64 | 109 68 56 Slowest Speed 250 | 200 250 250 Overloaded Moves . | . . . Propulsion Burnouts . | . . . Robots Hopped . | . . . Cave-ins Triggered . | . . . Exploration Rate (%) 36 | 3 43 64 Regions Visited 2 Branch Regions 1 Pre-discovered Areas 1 | . . 1 Known Exits Taken . | . . . Unknown Exits Taken 2 | 1 1 . Scrap Searched . | . . . Spaces Dug . | . . . Terrain Destroyed 136 | . 56 80 Melee . | . . . Projectile . | . . . AOE 136 | . 56 80 Terrain Rammed . | . . . Walls Destroyed . | . . . Machines Disabled . | . . . Actions | -11 -10 -10 --------- Run | Yrd Mat Min Total 836 | 56 308 472 Wait 23 | . 12 11 Move 712 | 43 268 401 Hop . | . . . Pick Up 19 | 7 7 5 Fast Attach 4 | . . 4 Attach 15 | 6 4 5 Detach 4 | . 3 1 Swap 6 | . . 6 Drop 10 | . . 10 Fire 43 | . 14 29 Melee . | . . . Ram . | . . . Kick . | . . . Crush . | . . . Escape Stasis . | . . . Rewire . | . . . Trap . | . . . Miscellaneous . | . . . Route ------- -11/Scrapyard -10/Materials (discovered 4 exits: [*Mat x2] / [*Min x2]) -10/Mines (discovered 1 exit: [*Mat]) History --------- Turn | Location | Event 5 | -11/Scrapyard | Discovered new exit (range 15) 61 | -11/Scrapyard | Entered Materials 135 | -10/Materials | Discovered new exit (range 10) 184 | -10/Materials | Discovered new exit (range 15) 293 | -10/Materials | Discovered new exit (range 15) 305 | -10/Materials | Build established: Mutant 305 | -10/Materials | Discovered new exit (range 6) 307 | -10/Materials | Entered Mines 359 | -10/Mines | Discovered new exit (range 14) 429 | -10/Mines | Assembled infested the area 438 | -10/Mines | Assisted by bots powering up and referring to "LRC-V3" 491 | -10/Mines | Core integrity fell below 50% 504 | -10/Mines | Lost 5 allies 511 | -10/Mines | Lost 4 parts (2n2w) 573 | -10/Mines | Core integrity fell below 20% 638 | -10/Mines | Destroyed by as-01110 with Assembled Heavy Rifle Last Messages --------------- U-05 Engineer lays Concrete. Dropped Sensor Array. U-05 Engineer builds a Wall. Acquired Lgt. Deuterium Engine. The unstable cave ceiling collapses. Acquired 6 matter. U-05 Engineer builds a Wall. Acquired 3 matter. Acquired 15 matter. U-05 Engineer lays Concrete. Dropped Grenade Launcher. Acquired Grenade Launcher. The unstable cave ceiling collapses. as-41846 destroyed. Acquired 4 matter. [Achievement: Oops] Acquired derelict log, extracted data. World map updated: -9/Materials. Shock Absorption System destroyed. Grenade Launcher destroyed. Map ----- +----------------------------------------------------+ | | | | | | | | | | | | | | | | | | | | | ?????????????????????????????????????? | | ????????????####???????????#####?????? | | ???????????## ##??????????# #?????? | | ?????###??## #??????????# ##????? | | ????## ### #??????????# ##???? | | ????# ##?????????# #???? | | ????# #????????## #??## | | ????## ## #????????# #?## | | ?????######### #????????# ##?# | | ????????????## #????????## ##??# | | ???????????## #?????????# ##???## | | ??????????## ##?????????# #?????# | | ?????###### ##??????????# #?????# | | ????## a ##?????????## ##????# | | ???## ######????# ###### | | ???# ##@ # #????# # | | ???# ### #????# | | ???## ### #????# | | ????## ## #????## | | ?????# ## ##?????### | | ????# ### ##???????## | | ????# #?## #######?????## | | ????# ##??# ### ##????# # = | | ????## #???# ## ##???## #= | | ?????# #???# ## #????### | | ?????## ##???# #?????# # | | ??????####????# ##?????# # | | ??????????????### # ###???#### # | | ????????????????# # " #???# # | | ????????????????# ## ###### | | ????????????????# ## = ! ## | | ????????????????# ## ## | | ????????????????# ## ### ### | | ????????????????# ###### # | | ???????????????? #?### # # | | ????????????????##### "" ### | | ???????????????????# """ ## | | ???????????????????# ## """ # | | ???????????????????## #### | | ????????????????????# ???# # | +----------------------------------------------------+ Best States ------------- Heat Dissipation 25 Energy Generation 14 Energy Capacity 140 Matter Stores 238 Matter Capacity 300 Sight Range 16 Robot Scan Range 14 Terrain Scan Density 10 Resistance: EX 25 Evasion (%) 62 Launcher Accuracy 20 Item Schematics ----------------- None Robot Schematics ------------------ None Fabricated ------------ Nothing Alien Tech Used ----------------- None Achievements -------------- Oops The More The Merrier Challenges ------------ None Game ------ Seed RestorationHardcellInjector Manual? 0 Play Time 00:23:51 Cumulative 18.2 hours Start 2024.08.25 @ 01:01:47 End 2024.08.25 @ 01:24:52 Sessions 1 Manual Loads 0 Difficulty Rogue Special Mode None Game No. 14 Rogue 14 Adventurer 0 Explorer 0 Win Type - Total 0 Types 0/0/0/0/0/0/0/0/0 Lore% 7 Gallery% 16 Achievement% 7 Wizard Run 0 Options --------- Layout 1 ASCII 0 Keyboard 0 Movement Mouse Keybinds 0 Fullscreen 1 Font 48/Smallcaps Map View 50x35 Zoom Use 0% Tactical HUD 0 Map Filters NONE Filters NONE Steam 1 RUN: 47947165-fcb4-445a-82ae-5c0c7f96b40c